bitfinex-derivatives/quotes_SOLF0:USTF0_20251006
["timestamp","ask_amount","ask_price","bid_price","bid_amount"]
[1759771821503,7.92,237.65,237.56,7.9]
[1759771821809,48.3,237.65,237.56,7.9]
[1759771822001,89.02,237.68,237.56,7.9]
[1759771822199,92.8047,237.68,237.56,7.9]
[1759771822705,89.02,237.68,237.59,10.88407929]
[1759771822908,7.92,237.7,237.59,10.88407929]
[1759771823204,64.16,237.71,237.6,7.92860098]
[1759771823601,67.9442,237.71,237.6,10.91268027]
[1759771823800,3.7842,237.71,237.6,10.91268027]
[1759771824002,107.7842,237.71,237.61,7.9]
[1759771824197,108.7042,237.71,237.61,7.9]
[1759771824405,3.7845,237.69,237.61,7.9]
[1759771825599,11.7049,237.67,237.6,0.02860098]
[1759771826107,3.7849,237.67,237.61,7.9]
[1759771826500,3.7849,237.67,237.6,0.02860098]
[1759771826501,7.92,237.66,237.6,0.02860098]
[1759771826899,104.9,237.68,237.6,0.02860098]
[1759771826900,7.92,237.64,237.6,0.02860098]
[1759771827096,104.9,237.68,237.6,0.02860098]
[1759771827097,7.92,237.68,237.6,0.02860098]
[1759771827299,58.8619,237.73,237.6,0.02860098]
[1759771827505,3.7843,237.71,237.61,7.9]
[1759771828111,3.7846,237.69,237.61,7.9]
[1759771828405,7.92,237.68,237.61,7.9]
[1759771829806,7.92,237.74,237.61,7.9]
[1759771830009,7.92,237.72,237.61,7.9]
[1759771830203,104.86,237.71,237.61,7.9]
[1759771830606,7.92,237.72,237.61,7.9]
[1759771830803,0.73241571,237.76,237.67,2.98407929]
[1759771831008,7.92,237.9,237.75,10.88407929]
[1759771831201,58.8076,237.95,237.79,2.98407929]
[1759771831513,110.6,237.95,237.8,7.9]
[1759771831804,58.8164,237.91,237.8,7.9]
[1759771832006,58.8164,237.91,237.85,0.0288283]
[1759771832007,7.92,237.88,237.85,0.0288283]
[1759771832210,58.8213,237.89,237.73,7.9]
[1759771832211,7.92,237.86,237.73,7.9]
[1759771832412,105.08,237.85,237.73,7.9]
[1759771832710,7.92,237.84,237.73,7.9]
[1759771832910,7.92,237.84,237.7,2.98407929]
[1759771833105,3.7827,237.81,237.68,7.9]
[1759771833305,7.92,237.82,237.68,7.9]
[1759771833702,0.02805438,237.79,237.7,3.7843]
[1759771833902,0.02805438,237.79,237.71,7.9]
[1759771834110,0.02805438,237.79,237.75,7.9]
[1759771834615,0.02805438,237.79,237.78,10.88407929]
[1759771834914,15.74,237.93,237.78,7.9]
[1759771835107,15.74,237.93,237.78,11.6831]
[1759771835108,7.92,237.92,237.78,11.6831]
[1759771835313,10.90407929,237.92,237.78,7.9]
[1759771835520,105.24,237.91,237.8,3.7827]
[1759771836009,7.92,237.92,237.78,7.9]
[1759771836206,2.98407929,237.85,237.69,7.85]
[1759771836411,2.98407929,237.81,237.64,2.98407929]
[1759771836606,58.8362,237.83,237.64,2.98407929]
[1759771836607,7.54,237.8,237.65,7.85]
[1759771836806,7.54,237.8,237.69,7.85]
[1759771837011,34.4,237.81,237.75,0.02667359]
[1759771837218,106.38,237.81,237.75,0.02667359]
[1759771838108,106.38,237.81,237.63,7.85]
[1759771838109,69.36797929,237.8,237.63,7.85]
[1759771838315,69.36797929,237.8,237.58,2.98407929]
[1759771838316,7.54,237.75,237.58,2.98407929]
[1759771838611,7.54,237.73,237.58,2.98407929]
[1759771838821,7.54,237.7,237.57,18.39775903]
[1759771839613,7.54,237.7,237.57,7.85]
[1759771839815,11.3248,237.68,237.53,6.77097929]
[1759771840011,11.3248,237.68,237.54,7.85]
[1759771840319,7.54,237.68,237.54,7.85]
[1759771840713,0.02673891,237.63,237.54,7.85]
[1759771841317,0.02673891,237.63,237.56,3.7865]
[1759771841710,0.02673891,237.63,237.58,11.6361]
[1759771841910,0.02673891,237.63,237.58,7.85]
[1759771842316,0.02673891,237.63,237.57,10.83407929]
[1759771842711,0.02673891,237.63,237.6,3.7859]
[1759771843117,0.02673891,237.63,237.6,11.6359]
[1759771843614,0.02673891,237.63,237.57,2.98407929]
[1759771843919,0.02673891,237.63,237.62,14.61967929]
[1759771846334,0.02673891,237.63,237.62,2.98407929]
[1759771846537,0.02673891,237.63,237.59,11.636]
[1759771846834,0.02673891,237.63,237.59,59.3151]
[1759771847037,7.54,237.73,237.65,3.785]
[1759771847433,7.54,237.73,237.64,7.85]
[1759771847630,7.54,237.73,237.64,11.6352]
[1759771848033,7.54,237.73,237.64,7.85]
[1759771848239,106.34,237.78,237.64,7.85]
[1759771848433,7.42,237.79,237.64,7.85]
[1759771848732,113.74,237.79,237.64,7.85]
[1759771848934,7.42,237.79,237.69,0.02723221]
[1759771849241,1.90202932,237.78,237.69,0.02723221]
[1759771850236,7.42,237.79,237.7,3.7843]
[1759771850432,66.26,237.81,237.69,0.02723221]
[1759771850433,7.42,237.73,237.69,0.02723221]
[1759771850629,7.42,237.7,237.69,0.02723221]
[1759771851430,7.84,237.7,237.57,7.3]
[1759771851635,9.32202932,237.66,237.54,1.90202932]
[1759771851829,1.90202932,237.63,237.54,1.90202932]
[1759771852535,1.90202932,237.63,237.52,7.3]
[1759771852536,7.42,237.62,237.52,7.3]
[1759771852929,7.42,237.62,237.51,3.7872]
[1759771853130,7.42,237.62,237.48,3.47763707]
[1759771853330,7.42,237.62,237.49,69.69793707]
[1759771853536,7.42,237.62,237.49,66.2203]
[1759771853733,7.42,237.62,237.49,7.3]
[1759771854533,11.2057,237.62,237.52,3.7872]
[1759771854938,0.02736375,237.58,237.52,3.7872]
[1759771855142,0.02736375,237.58,237.49,7.3]
[1759771856038,7.42,237.57,237.48,3.7878]
[1759771857041,7.42,237.57,237.47,3.47763707]
[1759771857042,7.42,237.57,237.5,3.7875]
[1759771858344,7.42,237.57,237.48,3.47763707]
[1759771858842,7.42,237.57,237.49,3.7876]
[1759771859040,7.42,237.57,237.48,3.47763707]
[1759771859244,0.02736375,237.58,237.5,3.47763707]
[1759771859444,0.02736375,237.58,237.51,3.7874]
[1759771859644,0.02736375,237.58,237.51,3.47763707]
[1759771859939,0.02736375,237.58,237.51,10.77763707]
[1759771860140,0.02736375,237.58,237.52,10.77763707]
[1759771860340,0.02736375,237.58,237.55,3.47763707]
[1759771860539,7.42,237.71,237.57,10.77763707]
[1759771861145,7.42,237.71,237.59,3.47763707]
[1759771861336,7.42,237.71,237.61,3.7857]
[1759771861542,7.42,237.71,237.61,10.77763707]
[1759771861944,7.42,237.71,237.64,0.03090732]
[1759771864036,3.7849,237.67,237.64,0.03090732]
[1759771864239,7.42,237.66,237.64,0.03090732]
[1759771864439,3.7849,237.67,237.64,0.03090732]
[1759771864644,7.42,237.66,237.64,0.03090732]
[1759771864847,12.0491792,237.74,237.64,0.03090732]
[1759771865444,7.42,237.7,237.64,0.03090732]
[1759771865644,7.42,237.7,237.64,3.50854439]
[1759771866149,7.42,237.7,237.63,3.47763707]
[1759771866547,7.42,237.7,237.65,0.02847908]
[1759771866747,7.42,237.72,237.65,0.02847908]
[1759771869752,11.205,237.66,237.65,0.02847908]
[1759771870451,7.42,237.66,237.65,0.02847908]
[1759771871355,106.3,237.71,237.65,0.02847908]
[1759771871556,106.3,237.72,237.65,0.02847908]
[1759771871853,7.42,237.71,237.65,0.02847908]
[1759771872052,7.42,237.71,237.6,3.47763707]
[1759771872447,66.2914,237.69,237.66,0.02969717]
[1759771872649,7.42,237.65,237.57,3.47763707]
[1759771872844,3.7856,237.63,237.55,3.47763707]
[1759771873247,106.34,237.64,237.54,3.47763707]
[1759771873444,3.7859,237.61,237.54,3.47763707]
[1759771874156,106.34,237.64,237.52,7.26463707]
[1759771874357,106.34,237.64,237.53,3.47763707]
[1759771874554,0.03004444,237.6,237.53,3.47763707]
[1759771875052,0.03004444,237.6,237.53,7.26463707]
[1759771875654,0.03004444,237.6,237.53,3.47763707]
[1759771876152,0.03004444,237.6,237.54,3.47763707]
[1759771876353,0.03004444,237.6,237.53,10.77763707]
[1759771876553,0.03004444,237.6,237.51,3.47763707]
[1759771876554,7.42,237.56,237.51,3.47763707]
[1759771876856,106.36,237.55,237.46,3.47763707]
[1759771877358,7.42,237.56,237.45,3.47763707]
[1759771877554,7.42,237.51,237.41,3.47763707]
[1759771877758,7.42,237.51,237.4,7.3]
[1759771878255,7.42,237.51,237.35,306.3]
[1759771878256,7.8,237.47,237.35,7.7]
[1759771878448,48.7,237.47,237.33,3.47763707]
[1759771878653,48.7,237.47,237.31,11.17763707]
[1759771879153,7.8,237.43,237.31,11.17763707]
[1759771879455,7.8,237.43,237.31,7.7]
[1759771880256,7.8,237.43,237.31,11.4905]
[1759771880757,7.8,237.43,237.28,3.47763707]
[1759771881051,7.8,237.43,237.27,3.47763707]
[1759771881252,66.7363,237.43,237.26,11.17763707]
[1759771881447,58.9363,237.43,237.26,11.17763707]
[1759771881657,7.8,237.42,237.26,7.7]
[1759771881858,7.82725685,237.38,237.26,7.7]
[1759771882059,75.78725685,237.38,237.26,7.7]
[1759771882356,75.78725685,237.38,237.27,3.7911]
[1759771883152,75.78725685,237.38,237.26,7.7]
[1759771884060,79.57675685,237.38,237.26,7.7]
[1759771884355,7.8,237.37,237.21,14.96973707]
[1759771884959,106.46,237.36,237.21,11.4921]
[1759771885155,7.8,237.35,237.21,7.7]
[1759771885360,35.4,237.34,237.21,7.7]
[1759771885755,0.02839557,237.31,237.21,7.7]
[1759771885956,0.02839557,237.31,237.22,3.792]
[1759771886155,0.02839557,237.31,237.25,58.9798]
[1759771886361,0.02839557,237.31,237.26,63.6064792]
[1759771886659,0.02839557,237.31,237.27,7.7]
[1759771886963,0.02839557,237.31,237.3,7.7]
[1759771887760,7.8,237.4,237.31,3.7905]
[1759771888161,7.8,237.47,237.33,7.7]
[1759771888557,7.8,237.47,237.37,3.7895]
[1759771889257,7.8,237.47,237.39,3.7892]
[1759771889961,7.8,237.47,237.4,0.03001964]
[1759771890554,306.38,237.48,237.4,0.03001964]
[1759771890759,7.8,237.51,237.4,0.03001964]
[1759771891461,7.8,237.51,237.42,3.7887]
[1759771891861,7.8,237.51,237.4,0.03001964]
[1759771892058,4.6291792,237.6,237.42,7.7]
[1759771892059,11.5867,237.56,237.42,7.7]
[1759771892359,91.22,237.6,237.43,7.7]
[1759771892566,314.38,237.62,237.47,12.3291792]
[1759771892757,314.38,237.62,237.51,11.4869]
[1759771892960,314.38,237.62,237.51,7.7]
[1759771893563,7.8,237.71,237.54,7.7]
[1759771893956,7.8,237.71,237.58,7.7]
[1759771895567,7.8,237.71,237.62,0.02883097]
[1759771908378,3.7842,237.69,237.62,0.02883097]
[1759771908583,7.76,237.68,237.62,0.02883097]
[1759771908985,7.76,237.69,237.62,0.02883097]
[1759771909181,58.8726,237.66,237.48,7.8]
[1759771909381,113.94,237.65,237.48,7.8]
[1759771909683,113.94,237.65,237.44,12.4291792]
[1759771909684,7.76,237.6,237.44,12.4291792]
[1759771910486,58.8783,237.64,237.44,7.8]
[1759771910487,7.76,237.63,237.44,7.8]
[1759771910687,7.76,237.58,237.44,7.8]
[1759771911088,7.76,237.58,237.43,7.8]
[1759771911388,0.02924454,237.53,237.44,7.8]
[1759771911692,0.02924454,237.53,237.43,58.9283]
[1759771911693,0.02924454,237.53,237.5,7.8]
[1759771912289,0.02924454,237.53,237.49,3.7873]
[1759771913293,0.02924454,237.53,237.5,7.8]
[1759771913493,0.02924454,237.53,237.49,3.7873]
[1759771913689,0.02924454,237.53,237.5,7.8]
[1759771913890,0.02924454,237.53,237.49,3.7873]
[1759771914095,0.02924454,237.53,237.5,7.8]
[1759771914591,0.02924454,237.53,237.49,3.7873]
[1759771914795,0.02924454,237.53,237.5,7.8]
[1759771915094,0.02924454,237.53,237.49,3.7873]
[1759771915289,0.02924454,237.53,237.5,7.8]
[1759771915493,0.02924454,237.53,237.49,3.7873]
[1759771915696,0.02924454,237.53,237.5,7.8]
[1759771916396,0.02924454,237.53,237.49,3.7873]
[1759771916793,0.02924454,237.53,237.5,7.8]
[1759771916994,0.02924454,237.53,237.49,3.7873]
[1759771917291,0.02924454,237.53,237.5,7.8]
[1759771917498,0.02924454,237.53,237.52,7.8]
[1759771917693,0.02924454,237.53,237.52,8.22]
[1759771917897,7.76,237.62,237.53,3.7865]
[1759771918092,3.7838,237.72,237.52,7.8]
[1759771918290,7.83037885,237.75,237.52,7.8]
[1759771918291,51.32,237.71,237.52,7.8]
[1759771918797,7.76,237.71,237.57,7.8]
[1759771919498,90.6,237.73,237.54,68.16]
[1759771919698,7.76,237.7,237.54,68.16]
[1759771919889,3.7838,237.71,237.54,68.16]
[1759771920091,7.76,237.7,237.62,0.02845288]
[1759771920589,3.7841,237.69,237.62,0.02845288]
[1759771920789,7.76,237.68,237.62,0.02845288]
[1759771921200,7.76,237.66,237.62,0.02845288]
[1759771921601,7.76,237.64,237.62,0.02845288]
[1759771922001,7.76,237.63,237.62,0.02845288]
[1759771922497,8.18,237.63,237.62,0.02845288]
[1759771923803,7.76,237.62,237.48,3.7874]
[1759771924102,7.83037885,237.59,237.4,7.8]
[1759771924302,7.76,237.58,237.4,7.8]
[1759771924501,7.76,237.56,237.41,3.7886]
[1759771924704,74.42,237.55,237.41,3.7886]
[1759771925305,0.02804486,237.51,237.41,3.7886]
[1759771925709,0.02804486,237.51,237.41,58.9338]
[1759771925911,0.02804486,237.51,237.44,66.7265]
[1759771926206,0.02804486,237.51,237.47,7.8]
[1759771926413,0.02804486,237.51,237.41,7.8]
[1759771926611,7.76,237.5,237.36,7.8]
[1759771927506,11.5472,237.5,237.36,7.8]
[1759771927707,7.76,237.5,237.36,7.8]
[1759771927902,7.78657142,237.45,237.36,7.8]
[1759771928414,43.92657142,237.45,237.36,7.8]
[1759771929312,61.96657142,237.45,237.36,7.8]
[1759771929709,61.96657142,237.45,237.31,11.5901]
[1759771929911,61.96657142,237.45,237.31,7.8]
[1759771930310,61.96657142,237.45,237.31,11.23870214]
[1759771930611,61.94,237.45,237.31,11.23870214]
[1759771930815,61.94,237.45,237.31,7.8]
[1759771931115,0.02806984,237.4,237.31,7.8]
[1759771931909,0.02806984,237.4,237.31,11.5901]
[1759771932119,0.02806984,237.4,237.26,71.56906238]
[1759771932120,0.02806984,237.4,237.29,3.43870214]
[1759771932312,7.76,237.39,237.26,11.23870214]
[1759771932511,35.38,237.39,237.26,11.23870214]
[1759771932713,27.62,237.39,237.26,11.23870214]
[1759771932914,7.76,237.38,237.26,7.8]
[1759771933318,85.02,237.37,237.26,7.8]
[1759771933614,7.78925043,237.35,237.22,3.43870214]
[1759771934010,7.78925043,237.35,237.19,4.65628972]
[1759771934011,7.76,237.34,237.19,3.43870214]
[1759771934210,7.76,237.34,237.17,11.23870214]
[1759771934408,7.76,237.34,237.17,7.8]
[1759771934409,7.83037885,237.34,237.17,7.8]
[1759771934608,49.36,237.33,237.16,3.43870214]
[1759771934814,77.44,237.32,237.16,3.43870214]
[1759771935009,7.76,237.31,237.16,3.43870214]
[1759771935214,7.83037885,237.34,237.16,7.8]
[1759771935215,7.76,237.29,237.16,7.8]
[1759771935416,7.76,237.26,237.16,7.8]
[1759771935610,7.76,237.26,237.13,20.88303334]
[1759771935817,7.76,237.26,237.11,7.8]
[1759771936116,7.76,237.24,237.11,7.8]
[1759771936317,7.76,237.24,237.09,3.7936]
[1759771936513,105.3,237.23,237.09,3.7936]
[1759771936819,0.02671865,237.2,237.11,3.7933]
[1759771937015,0.02671865,237.2,237.11,59.0086]
[1759771937321,0.02671865,237.2,237.12,66.8056]
[1759771937522,0.02671865,237.2,237.16,7.8]
[1759771937720,0.02671865,237.2,237.14,7.8]
[1759771938312,0.02671865,237.2,237.14,11.5929]
[1759771938826,0.02671865,237.2,237.14,7.8]
[1759771939320,0.02671865,237.2,237.11,3.7933]
[1759771940122,0.02671865,237.2,237.09,7.32]
[1759771940425,7.63671865,237.2,237.09,7.32]
[1759771940913,106.48,237.19,237.09,7.32]
[1759771941117,0.02671865,237.2,237.09,7.32]
[1759771941325,0.02671865,237.2,237.1,3.7935]
[1759771942025,0.02671865,237.2,237.09,7.32]
[1759771942721,54.38,237.19,237.1,3.7935]
[1759771942921,54.38,237.19,237.09,7.32]
[1759771943223,102.74,237.19,237.09,7.32]
[1759771943414,0.02671865,237.2,237.09,7.32]
[1759771943615,0.02671865,237.2,237.1,3.7935]
[1759771943831,56.5,237.19,237.1,3.7935]
[1759771945126,56.5,237.19,237.09,7.32]
[1759771945526,106.46,237.19,237.09,7.32]
[1759771945926,0.02671865,237.2,237.09,7.32]
[1759771946427,0.02671865,237.2,237.12,3.7932]
[1759771946622,0.02671865,237.2,237.12,7.32]
[1759771946822,0.02671865,237.2,237.06,7.32]
[1759771947517,7.61,237.21,237.06,7.32]
[1759771947922,7.61,237.21,237.08,3.7937]
[1759771948420,106.46,237.2,237.08,3.7937]
[1759771948820,0.0273413,237.17,237.08,3.7937]
[1759771949226,7.6373413,237.17,237.06,7.32]
[1759771949426,0.0273413,237.17,237.06,7.32]
[1759771949722,0.0273413,237.17,237.11,3.7934]
[1759771950628,0.0273413,237.17,237.11,7.32]
[1759771951230,0.0273413,237.17,237.08,7.32]
[1759771951929,0.0273413,237.17,237.11,3.7933]
[1759771952928,0.0273413,237.17,237.11,11.1133]
[1759771954325,0.0273413,237.17,237.08,3.7937]
[1759771954531,0.0273413,237.17,237.07,7.32]
[1759771954830,0.0273413,237.17,237.07,11.114]
[1759771955828,106.3,237.16,237.07,7.32]
[1759771956329,0.0273413,237.17,237.07,7.32]
[1759771957926,79.16,237.16,237.07,7.32]
[1759771958124,0.0273413,237.17,237.07,7.32]
[1759771958529,0.0273413,237.17,237.1,3.7934]
[1759771959134,106.2873413,237.17,237.08,3.7938]
[1759771959429,106.2873413,237.17,237.07,7.32]
[1759771959839,0.0273413,237.17,237.09,3.7937]
[1759771960242,57.14,237.16,237.09,3.7937]
[1759771961437,96.54,237.16,237.09,3.7937]
[1759771961637,0.0273413,237.17,237.07,7.32]
[1759771961836,28.74,237.16,237.07,7.32]
[1759771962234,28.74,237.16,237.07,11.1139]
[1759771962434,28.74,237.16,237.07,7.32]
[1759771962841,0.0273413,237.17,237.07,7.32]
[1759771963139,61.34,237.16,237.07,7.32]
[1759771963331,0.0273413,237.17,237.1,3.7934]
[1759771963533,56.8073413,237.17,237.1,3.7934]
[1759771963730,106.1273413,237.17,237.1,3.7934]
[1759771963929,0.0273413,237.17,237.1,3.7934]
[1759771965838,106.0273413,237.17,237.08,3.7938]
[1759771966340,106.0273413,237.17,237.07,7.32]
[1759771967629,7.49,237.16,237.07,7.32]
[1759771968037,11.2827,237.16,237.07,7.32]
[1759771968444,83.78,237.15,237.07,7.32]
[1759771969137,83.78,237.15,236.97,84.89200123]
[1759771969138,83.78,237.15,237.04,3.45542444]
[1759771969332,83.78,237.15,237.03,3.45542444]
[1759771969739,7.31,237.14,237.02,11.29542444]
[1759771970139,3.7933,237.12,237.02,11.6347]
[1759771970341,7.31,237.11,237.02,11.6347]
[1759771971141,7.31,237.11,237.02,15.09012444]
[1759771971344,29.48,237.1,237.02,15.09012444]
[1759771971546,0.02861477,237.09,237.02,15.09012444]
[1759771971735,0.02861477,237.09,236.98,4.65628972]
[1759771971736,0.02861477,237.09,237.01,3.45542444]
[1759771971939,28.6,237.08,237.01,3.45542444]
[1759771972334,28.6,237.08,237.02,7.25012444]
[1759771972539,28.6,237.08,237.02,3.45542444]
[1759771972743,28.6,237.08,237.0,3.45542444]
[1759771972744,7.31,237.07,237.0,3.45542444]
[1759771973036,7.31,237.07,236.98,11.29542444]
[1759771973241,3.7942,237.06,236.99,3.45542444]
[1759771973439,3.7942,237.06,236.98,7.84]
[1759771973440,3.7942,237.06,236.98,11.29542444]
[1759771973640,7.31,237.07,236.98,11.29542444]
[1759771973940,49.32,237.07,236.99,11.29542444]
[1759771974140,0.02861477,237.09,237.0,3.45542444]
[1759771974344,107.01,237.08,237.0,3.45542444]
[1759771974834,105.8,237.07,237.02,3.7948]
[1759771975032,7.31,237.07,237.02,3.7948]
[1759771975235,0.02743706,237.06,237.02,7.25022444]
[1759771975442,0.02743706,237.06,237.03,7.84]
[1759771975844,0.02743706,237.06,237.03,11.29542444]
[1759771976243,0.02743706,237.06,237.04,3.45542444]
[1759771976547,0.02743706,237.06,237.04,11.29542444]
[1759771977043,0.02743706,237.06,237.05,7.84]
[1759771977545,0.02743706,237.06,237.05,12.49628972]
[1759771977945,0.02743706,237.06,237.05,7.84]
[1759771978943,0.02743706,237.06,237.05,12.49231762]
[1759771979247,0.02743706,237.06,237.05,12.49481329]
[1759771979647,0.02743706,237.06,237.05,4.65481329]
[1759771980147,0.02743706,237.06,237.05,7.84]
[1759771980342,0.02743706,237.06,237.05,12.49481329]
[1759771980949,0.02743706,237.06,237.05,7.84]
[1759771981542,0.02743706,237.06,237.04,8.45219051]
[1759771981745,0.02743706,237.06,237.04,16.29219051]
[1759771982246,0.02743706,237.06,237.05,7.84]
[1759771982447,0.02743706,237.06,237.03,4.65769051]
[1759771982648,0.02743706,237.06,237.04,12.49769051]
[1759771983148,0.02743706,237.06,237.04,7.84]
[1759771983345,0.02743706,237.06,237.03,8.45229051]
[1759771984045,0.02743706,237.06,237.05,3.49267755]
[1759771984247,7.33743706,237.06,237.05,3.49267755]
[1759771984450,7.31,237.05,237.04,3.49267755]
[1759771984651,7.31,237.05,237.02,3.49267755]
[1759771984950,7.31,237.05,236.96,7.01636459]
[1759771984951,7.31,237.05,237.01,3.49267755]
[1759771985341,0.02743706,237.06,237.0,3.49267755]
[1759771985650,7.31,237.04,237.0,3.49267755]
[1759771986048,105.80743706,237.06,237.01,3.49267755]
[1759771986351,113.11743706,237.06,237.01,3.49267755]
[1759771986852,0.02743706,237.06,237.01,3.49267755]
[1759771987056,0.02743706,237.06,237.03,3.49267755]
[1759771987354,0.02743706,237.06,237.02,11.33267755]
[1759771987549,0.02743706,237.06,236.97,1.91240913]
[1759771987550,7.31,237.05,237.01,3.49267755]
[1759771987943,7.31,237.05,237.01,7.28767755]
[1759771988245,0.02743706,237.06,237.02,7.84]
[1759771988445,0.02743706,237.06,237.04,3.7945]
[1759771988648,0.02743706,237.06,237.05,7.84]
[1759771989450,0.02743706,237.06,237.04,3.49267755]
[1759771989651,0.02743706,237.06,237.02,7.28747755]
[1759771989850,0.02743706,237.06,237.02,11.6348]
[1759771990052,0.02743706,237.06,237.02,3.7948]
[1759771990252,0.02743706,237.06,237.03,7.84]
[1759771990449,0.02743706,237.06,237.04,7.84]
[1759771990650,0.02743706,237.06,237.05,11.33267755]
[1759771991053,0.02743706,237.06,237.05,7.84]
[1759771993658,0.02743706,237.06,237.05,12.91769051]
[1759771994053,0.02743706,237.06,237.05,14.83009964]
[1759771995058,0.02743706,237.06,237.05,7.84]
[1759771996163,0.02743706,237.06,237.05,11.32886224]
[1759771996458,0.02743706,237.06,237.05,3.48886224]
[1759771996657,0.02743706,237.06,237.05,7.84]
[1759771996848,0.02743706,237.06,237.05,11.32886224]
[1759771997055,0.02743706,237.06,237.05,7.84]
[1759771997360,0.02743706,237.06,237.05,11.32944501]
[1759771997561,0.02743706,237.06,237.05,3.48944501]
[1759771997760,7.33743706,237.06,237.04,3.48944501]
[1759771997962,0.02743706,237.06,237.04,3.48944501]
[1759771998159,7.79,237.05,237.03,3.48944501]
[1759771998556,0.02743706,237.06,237.03,11.20944501]
[1759771998751,0.02743706,237.06,237.04,3.48944501]
[1759771998960,0.02743706,237.06,237.05,11.20944501]
[1759771999161,0.02743706,237.06,237.05,9.63240913]
[1759771999459,0.02743706,237.06,237.05,10.05240913]
[1759771999665,0.02743706,237.06,237.05,14.2884297]
[1759771999866,0.02743706,237.06,237.05,7.72]
[1759772000158,0.02743706,237.06,237.04,11.5145]
[1759772000766,0.02743706,237.06,237.05,3.49481171]
[1759772001564,0.02743706,237.06,237.05,7.72]
[1759772001862,0.02743706,237.06,237.05,11.21492678]
[1759772002267,0.02743706,237.06,237.05,7.72]
[1759772008083,0.02743706,237.06,237.05,9.63240913]
[1759772009482,0.02743706,237.06,237.04,8.45598856]
[1759772009781,0.02743706,237.06,237.05,7.72]
[1759772009976,0.02743706,237.06,237.05,12.38148856]
[1759772010779,0.02743706,237.06,237.05,7.72]
[1759772011581,0.02743706,237.06,237.05,12.38148856]
[1759772011784,0.02743706,237.06,237.05,9.63240913]
[1759772012386,7.79,237.17,237.06,7.72]
[1759772012588,7.79,237.2,237.13,3.49688459]
[1759772012779,1.91240913,237.19,237.12,3.49688459]
[1759772013283,1.91240913,237.19,237.13,3.49688459]
[1759772013488,1.91240913,237.19,237.12,3.49688459]
[1759772014190,7.79,237.2,237.13,3.49688459]
[1759772015285,7.79,237.2,237.14,3.49688459]
[1759772016098,7.79,237.2,237.14,7.28968459]
[1759772016389,7.79,237.2,237.14,3.7928]
[1759772016786,9.70240913,237.2,237.14,3.7928]
[1759772017091,7.15,237.19,237.15,0.02884213]
[1759772017897,1.91240913,237.2,237.15,0.02884213]
[1759772018088,7.15,237.19,237.15,0.02884213]
[1759772018988,1.91240913,237.2,237.15,0.02884213]
[1759772019184,7.15,237.19,237.15,0.02884213]
[1759772020593,1.91240913,237.2,237.15,0.02884213]
[1759772020893,7.15,237.19,237.15,0.02884213]
[1759772023290,1.91240913,237.2,237.15,0.02884213]
[1759772023496,7.15,237.19,237.16,7.28928459]
[1759772023696,7.15,237.19,237.17,3.49688459]
[1759772024197,7.15,237.19,237.16,7.28928459]
[1759772025201,307.04,237.23,237.17,3.7923]
[1759772025202,314.19,237.23,237.17,3.7923]
[1759772025493,419.79,237.23,237.16,3.49688459]
[1759772025798,419.91,237.23,237.16,3.49688459]
[1759772025998,314.19,237.23,237.16,3.49688459]
[1759772026194,419.91,237.23,237.19,3.7921]
[1759772026397,419.91,237.23,237.17,3.49688459]
[1759772026398,7.15,237.23,237.17,3.49688459]
[1759772026596,7.15,237.28,237.18,10.76688459]
[1759772026800,8.16100271,237.34,237.24,3.7913]
[1759772026995,7.15,237.28,237.24,3.7913]